bitfinex-derivatives/quotes_SOLF0:USTF0_20251119
["timestamp","ask_amount","ask_price","bid_price","bid_amount"]
[1763516361802,3.21433112,140.72,140.64,3.2]
[1763516362002,2.98,140.68,140.61,3.04]
[1763516362507,5.35651589,140.69,140.6,6.4048]
[1763516362508,2.98,140.66,140.6,6.4048]
[1763516362704,3.03046262,140.64,140.62,0.0514267]
[1763516363209,9.43396262,140.64,140.62,0.0514267]
[1763516363403,2.98,140.63,140.56,43.9068]
[1763516363606,2.98,140.63,140.56,6.4068]
[1763516363798,2.98,140.61,140.55,3.04]
[1763516364305,0.05273244,140.59,140.57,0.05435057]
[1763516364502,2.98,140.58,140.57,0.05435057]
[1763516365215,0.05273244,140.59,140.57,0.05435057]
[1763516365406,0.05273244,140.59,140.58,3.04]
[1763516367108,0.05273244,140.59,140.57,3.09435057]
[1763516367306,0.05273244,140.59,140.57,0.05435057]
[1763516367511,0.05273244,140.59,140.5,99.7064]
[1763516367514,3.03273244,140.59,140.51,6.409]
[1763516367710,2.98,140.59,140.5,3.04]
[1763516367906,2.98,140.58,140.5,3.04]
[1763516368109,2.98,140.57,140.48,6.4105]
[1763516368316,2.98,140.56,140.47,4.27854435]
[1763516368516,3.02902449,140.53,140.5,0.051822]
[1763516368817,102.71912449,140.53,140.44,3.04]
[1763516369110,2.98,140.51,140.4,102.8158]
[1763516369315,2.98,140.51,140.4,140.3558]
[1763516369502,2.98,140.51,140.44,3.04]
[1763516369904,0.04982894,140.49,140.46,0.04820536]
[1763516370305,0.04982894,140.49,140.46,3.08820536]
[1763516370502,0.04982894,140.49,140.47,6.4108]
[1763516370908,0.04982894,140.49,140.48,3.04]
[1763516371209,2.98,140.54,140.49,102.7516]
[1763516371408,37.54,140.56,140.5,3.04]
[1763516372218,0.04679487,140.54,140.52,0.04970513]
[1763516372919,0.04679487,140.54,140.52,3.08970513]
[1763516373306,0.04679487,140.54,140.52,3.24970513]
[1763516373615,40.8,140.61,140.54,102.8753]
[1763516373819,40.8,140.61,140.54,3.2]
[1763516374419,40.8,140.61,140.52,99.6903]
[1763516374420,3.22,140.58,140.56,0.04905349]
[1763516375716,0.05299685,140.59,140.56,0.04905349]
[1763516375915,3.27299685,140.59,140.56,0.04905349]
[1763516376414,0.05299685,140.59,140.56,0.04905349]
[1763516377417,0.05299685,140.59,140.56,9.65575349]
[1763516377920,3.27299685,140.59,140.56,0.04905349]
[1763516379516,0.05299685,140.59,140.56,0.04905349]
[1763516380120,0.05299685,140.59,140.56,9.65575349]
[1763516380415,0.05299685,140.59,140.57,3.2]
[1763516380821,37.58,140.67,140.58,3.2]
[1763516380822,3.22,140.65,140.58,3.2]
[1763516381414,3.22,140.65,140.58,9.6059]
[1763516381823,0.0492533,140.63,140.6,0.04756887]
[1763516383124,0.0492533,140.63,140.6,3.24756887]
[1763516385027,0.0492533,140.63,140.61,9.6044]
[1763516385824,6.4009,140.7,140.62,3.2]
[1763516386024,40.78,140.71,140.63,3.2]
[1763516386219,3.22,140.7,140.63,3.2]
[1763516387020,0.04654143,140.68,140.65,0.05282795]
[1763516387736,0.04654143,140.68,140.67,3.2]
[1763516388027,3.22,140.73,140.67,3.2]
[1763516388413,3.22,140.73,140.69,6.4009]
[1763516388620,3.22,140.73,140.69,9.6009]
[1763516388918,3.22,140.73,140.7,0.04473024]
[1763516388919,0.05207415,140.72,140.7,0.04473024]
[1763516389120,3.27207415,140.72,140.7,0.04473024]
[1763516390826,9.67187415,140.72,140.7,0.04473024]
[1763516391725,3.27207415,140.72,140.7,0.04473024]
[1763516399736,9.67187415,140.72,140.7,0.04473024]
[1763516401134,3.22,140.71,140.7,0.04473024]
[1763516401336,3.22,140.68,140.64,6.4032]
[1763516401632,3.22,140.68,140.59,3.2]
[1763516402229,3.22,140.64,140.62,0.04472773]
[1763516402435,3.22,140.64,140.56,3.2]
[1763516402933,9.6237,140.64,140.57,6.4062]
[1763516403130,3.22,140.64,140.56,3.2]
[1763516403528,0.05179995,140.61,140.59,0.04611673]
[1763516403732,3.20179995,140.61,140.59,0.04611673]
[1763516404836,9.60679995,140.61,140.59,0.04611673]
[1763516405039,3.15,140.6,140.59,0.04611673]
[1763516408232,0.05179995,140.61,140.59,0.04611673]
[1763516408541,0.05179995,140.61,140.6,3.05]
[1763516408938,0.05179995,140.61,140.59,3.09611673]
[1763516409139,0.05179995,140.61,140.59,0.04611673]
[1763516409140,3.20179995,140.61,140.59,0.04611673]
[1763516410640,3.20179995,140.61,140.59,3.09611673]
[1763516410641,0.05179995,140.61,140.59,3.09611673]
[1763516411032,3.15,140.65,140.59,3.09611673]
[1763516411230,47.0514,140.69,140.62,3.05]
[1763516411642,3.15,140.68,140.62,3.05]
[1763516412140,0.05171455,140.66,140.64,0.04586571]
[1763516413541,3.20171455,140.66,140.64,0.04586571]
[1763516413733,3.20171455,140.66,140.59,3.05]
[1763516414341,9.60441455,140.66,140.59,3.05]
[1763516414742,0.05171455,140.66,140.63,6.4037]
[1763516414939,0.05171455,140.66,140.64,3.05]
[1763516415137,0.05171455,140.66,140.63,9.4537]
[1763516416451,0.05171455,140.66,140.63,3.05]
[1763516416950,3.20171455,140.66,140.62,3.05]
[1763516417155,3.20171455,140.66,140.61,0.05205664]
[1763516417448,3.15,140.63,140.61,0.05205664]
[1763516418149,3.15,140.62,140.61,0.05205664]
[1763516422858,9.5545,140.62,140.56,3.05]
[1763516423553,3.20521307,140.63,140.58,2.98]
[1763516423750,0.04836122,140.62,140.59,0.04546898]
[1763516423954,0.04836122,140.62,140.59,3.02546898]
[1763516424844,0.04836122,140.62,140.59,9.43106898]
[1763516425253,0.04836122,140.62,140.59,3.02546898]
[1763516426151,0.04836122,140.62,140.6,6.4051]
[1763516426350,8.56688928,140.69,140.63,99.6147]
[1763516426554,3.16,140.72,140.64,2.98]
[1763516427155,3.16,140.71,140.64,2.98]
[1763516427357,0.05288141,140.69,140.66,0.04683574]
[1763516427957,0.05288141,140.69,140.67,6.4019]
[1763516430961,0.05288141,140.69,140.66,0.04683574]
[1763516431158,0.05288141,140.69,140.66,3.02683574]
[1763516431864,0.05288141,140.69,140.66,9.42923574]
[1763516433256,0.05288141,140.69,140.67,9.3818]
[1763516433559,0.05288141,140.69,140.68,2.99]
[1763516434749,3.10288141,140.69,140.66,3.03683574]
[1763516435362,3.05,140.68,140.66,0.04683574]
[1763516438068,0.05288141,140.69,140.66,3.03683574]
[1763516438458,0.05288141,140.69,140.67,2.99]
[1763516438667,136.9801,140.77,140.67,2.99]
[1763516438668,3.05,140.75,140.71,2.99]
[1763516438968,40.51,140.77,140.71,2.99]
[1763516439169,3.05,140.75,140.71,2.99]
[1763516439669,3.05,140.75,140.66,37.46]
[1763516439871,3.1041943,140.72,140.69,0.0535898]
[1763516440380,0.0541943,140.72,140.69,3.0435898]
[1763516440882,3.1041943,140.72,140.69,3.0435898]
[1763516441381,0.0541943,140.72,140.69,3.0435898]
[1763516443280,3.1041943,140.72,140.69,3.0435898]
[1763516443474,3.1041943,140.72,140.69,0.0535898]
[1763516444784,0.0541943,140.72,140.7,2.99]
[1763516447381,0.0541943,140.72,140.69,3.0435898]
[1763516453086,0.0541943,140.72,140.69,9.4446898]
[1763516453587,0.0541943,140.72,140.7,2.99]
[1763516454377,6.4538943,140.72,140.7,2.99]
[1763516455783,0.0541943,140.72,140.7,2.99]
[1763516460088,0.0541943,140.72,140.65,37.46]
[1763516460089,3.05,140.71,140.64,2.99]
[1763516460490,3.05,140.67,140.61,40.45]
[1763516460793,3.05,140.65,140.58,2.99]
[1763516460982,3.09713517,140.63,140.6,0.05051219]
[1763516461992,3.09713517,140.63,140.6,3.04051219]
[1763516463396,9.50103517,140.63,140.6,0.05051219]
[1763516463591,3.09713517,140.63,140.6,3.33051219]
[1763516465086,3.09713517,140.63,140.6,0.05051219]
[1763516466492,9.50103517,140.63,140.6,0.05051219]
[1763516466795,9.50103517,140.63,140.6,3.33051219]
[1763516469096,3.09713517,140.63,140.6,3.33051219]
[1763516469991,3.02,140.62,140.6,0.05051219]
[1763516470396,9.4252,140.6,140.54,40.74]
[1763516470600,3.02,140.59,140.54,3.28]
[1763516470799,4.9204865,140.58,140.51,3.28]
[1763516471498,0.04585333,140.56,140.53,3.33028307]
[1763516472902,0.04585333,140.56,140.54,9.6878]
[1763516473102,0.04585333,140.56,140.55,3.28]
[1763516476601,3.02,140.63,140.59,3.28]
[1763516477310,9.4232,140.65,140.6,3.28]
[1763516477605,3.06802341,140.64,140.61,0.04818808]
[1763516478910,3.06802341,140.64,140.61,3.32818808]
[1763516480308,0.04802341,140.64,140.61,3.32818808]
[1763516480509,3.06802341,140.64,140.61,3.32818808]
[1763516480908,0.04802341,140.64,140.62,3.28]
[1763516481413,3.02,140.63,140.61,0.04818808]
[1763516482009,3.28,140.58,140.52,3.08]
[1763516482710,3.28,140.61,140.56,3.08]
[1763516483013,0.04652941,140.6,140.58,3.08]
[1763516483207,0.05147136,140.6,140.58,3.13120909]
[1763516484710,3.33147136,140.6,140.58,0.05120909]
[1763516485511,9.73667136,140.6,140.58,0.05120909]
[1763516485814,0.05147136,140.6,140.58,3.13120909]
[1763516486616,0.05147136,140.6,140.59,3.08]
[1763516489509,0.05147136,140.6,140.58,47.01720909]
[1763516489816,0.05147136,140.6,140.58,9.53720909]
[1763516490413,0.05147136,140.6,140.59,3.08]
[1763516492909,0.05147136,140.6,140.58,0.05120909]
[1763516492910,3.01147136,140.6,140.58,0.05120909]
[1763516495116,3.11,140.59,140.52,3.03]
[1763516496123,3.15836395,140.57,140.54,0.05072604]
[1763516497223,3.15836395,140.57,140.54,6.45852604]
[1763516498324,3.15836395,140.57,140.54,0.05072604]
[1763516500814,3.15836395,140.57,140.54,3.08072604]
[1763516503826,9.56496395,140.57,140.54,0.05072604]
[1763516505228,6.45496395,140.57,140.55,3.03]
[1763516505832,6.45496395,140.57,140.54,3.08072604]
[1763516506234,9.56496395,140.57,140.54,3.08072604]
[1763516506730,0.04836395,140.57,140.55,3.03]
[1763516506922,5.40608994,140.64,140.57,3.03]
[1763516507127,3.11,140.65,140.57,3.03]
[1763516507335,3.11,140.64,140.57,3.03]
[1763516507537,8.51756118,140.63,140.57,3.03]
[1763516507839,0.04609546,140.61,140.59,0.05110909]
[1763516508034,0.05411299,140.61,140.59,0.05110909]
[1763516509133,3.11,140.6,140.59,0.05110909]
[1763516509329,3.11,140.6,140.54,3.03]
[1763516510339,3.11,140.6,140.56,0.05134699]
[1763516511329,9.5153,140.6,140.56,0.05134699]
[1763516511526,3.11,140.6,140.56,0.05134699]
[1763516512136,3.11,140.58,140.56,0.05134699]
[1763516518040,6.4057,140.59,140.5,3.03]
[1763516518041,3.11,140.54,140.5,3.03]
[1763516519057,3.15985631,140.53,140.51,0.05429233]
[1763516519251,3.15663035,140.53,140.51,0.05429233]
[1763516519449,0.04663035,140.53,140.51,3.08429233]
[1763516520538,0.04663035,140.53,140.52,3.03]
[1763516521349,3.11,140.59,140.53,3.03]
[1763516521647,3.11,140.59,140.56,3.03]
[1763516522240,3.15702584,140.59,140.56,3.08010747]
[1763516522842,0.04702584,140.59,140.56,9.48700747]
[1763516523146,0.04702584,140.59,140.57,3.03]
[1763516523750,0.04702584,140.59,140.58,3.15]
[1763516525454,3.11702584,140.59,140.56,0.05010747]
[1763516526951,9.52272584,140.59,140.56,0.05010747]
[1763516527152,3.07,140.58,140.56,0.05010747]
[1763516531855,3.11702584,140.59,140.56,0.05010747]
[1763516532154,0.04702584,140.59,140.56,3.20010747]
[1763516533348,0.04702584,140.59,140.58,3.15]
[1763516533847,3.11702584,140.59,140.56,0.05010747]
[1763516534952,9.52272584,140.59,140.56,0.05010747]
[1763516535952,3.11702584,140.59,140.56,0.05010747]
[1763516536358,0.04702584,140.59,140.57,3.15]
[1763516536857,3.11702584,140.59,140.56,0.05010747]
[1763516537454,3.11702584,140.59,140.56,9.60700747]
[1763516538258,3.11702584,140.59,140.56,0.05010747]
[1763516539853,3.07,140.57,140.56,0.05010747]
[1763516540160,3.07,140.57,140.49,137.1716]
[1763516540161,3.07,140.56,140.49,40.61]
[1763516540357,3.07,140.52,140.49,40.61]
[1763516540656,3.07,140.52,140.43,4.38896326]
[1763516541050,9.4799,140.5,140.43,4.38896326]
[1763516541360,0.05114909,140.48,140.45,0.04948085]
[1763516541563,0.05114909,140.48,140.45,3.19948085]
[1763516541761,3.12114909,140.48,140.45,0.04948085]
[1763516542861,3.12114909,140.48,140.45,3.05948085]
[1763516544052,3.12114909,140.48,140.45,9.47138085]
[1763516544256,3.12114909,140.48,140.45,3.05948085]
[1763516545157,0.05114909,140.48,140.45,3.05948085]
[1763516545358,3.23114909,140.48,140.45,0.04948085]
[1763516545762,3.23114909,140.48,140.45,3.05948085]
[1763516546464,3.23114909,140.48,140.45,9.47138085]
[1763516548764,3.23114909,140.48,140.45,3.05948085]
[1763516551269,3.22,140.46,140.45,0.04948085]
[1763516551663,3.22,140.46,140.39,3.25]
[1763516552567,3.22,140.43,140.41,0.03920477]
[1763516559971,3.01,140.49,140.43,3.18]
[1763516560480,3.01,140.49,140.45,6.4118]
[1763516560975,0.05217736,140.48,140.46,0.04986332]
[1763516562880,3.06217736,140.48,140.46,0.04986332]
[1763516563679,3.01,140.47,140.46,0.04986332]
[1763516570779,9.4211,140.47,140.46,0.04986332]
[1763516572879,3.01,140.47,140.46,0.04986332]
[1763516574183,3.06217736,140.48,140.46,0.04986332]
[1763516575380,0.05217736,140.48,140.46,9.64136332]
[1763516576083,0.05217736,140.48,140.47,6.4111]
[1763516576378,0.05217736,140.48,140.47,9.5911]
[1763516579375,0.05217736,140.48,140.47,3.18]
[1763516581193,3.01,140.56,140.49,3.18]
[1763516581483,3.01,140.54,140.51,3.18]
[1763516582188,3.05701606,140.54,140.51,3.23035896]
[1763516582386,0.04701606,140.54,140.52,3.18]
[1763516582776,3.01,140.6,140.52,3.18]
[1763516582975,5.43131153,140.59,140.53,3.18]
[1763516583179,3.01,140.6,140.53,3.18]
[1763516583380,9.5157,140.59,140.55,3.02]
[1763516583583,3.11,140.62,140.55,3.02]
[1763516583793,3.16173521,140.6,140.57,0.04866604]
[1763516584376,3.11,140.59,140.57,0.04866604]
[1763516586683,3.11,140.59,140.5,4.92416694]
[1763516586684,3.11,140.57,140.5,4.92416694]
[1763516586878,3.11,140.57,140.51,3.02]
[1763516587285,3.11,140.55,140.51,3.02]
[1763516587481,9.5173,140.56,140.51,3.02]
[1763516587684,0.04720407,140.55,140.52,3.07299314]
[1763516588090,3.11,140.54,140.52,0.05299314]
[1763516588593,0.04720407,140.55,140.52,3.07299314]
[1763516588789,0.04720407,140.55,140.53,3.02]
[1763516589687,0.04720407,140.55,140.53,9.4282]
[1763516589899,0.04720407,140.55,140.53,3.02]
[1763516590884,0.04720407,140.55,140.53,9.4282]
[1763516591285,0.04720407,140.55,140.53,3.02]
[1763516592983,3.15720407,140.55,140.52,0.05299314]
[1763516593395,9.56470407,140.55,140.52,0.05299314]
[1763516594389,3.15720407,140.55,140.52,3.07299314]
[1763516595187,9.56470407,140.55,140.52,3.07299314]
[1763516596188,9.56470407,140.55,140.52,0.05299314]
[1763516596189,6.408,140.54,140.52,0.05299314]
[1763516596394,3.11,140.53,140.52,0.05299314]
[1763516604207,3.11,140.53,140.46,9.4314]
[1763516604504,3.11,140.53,140.46,3.02]
[1763516604689,6.4092,140.52,140.47,6.4111]
[1763516604892,9.5992,140.52,140.48,3.21]
[1763516605095,3.19,140.51,140.48,3.21]
[1763516605300,3.24142806,140.51,140.48,3.25935178]
[1763516606201,9.65072806,140.51,140.48,3.25935178]
[1763516606598,3.24142806,140.51,140.48,9.66995178]
[1763516606795,0.05142806,140.51,140.49,3.21]
[1763516606994,0.05142806,140.51,140.48,0.04935178]
[1763516606995,3.24142806,140.51,140.48,0.04935178]
[1763516607905,9.65072806,140.51,140.48,0.04935178]
[1763516609902,3.19,140.5,140.48,0.04935178]
[1763516612503,3.19,140.5,140.48,3.25935178]
[1763516612703,3.19,140.5,140.48,0.04935178]
[1763516613308,3.19,140.5,140.48,3.25935178]
[1763516614506,0.05142806,140.51,140.48,3.25935178]
[1763516614697,3.32142806,140.51,140.48,3.25935178]
[1763516615802,0.05142806,140.51,140.49,3.12]
[1763516617302,3.32142806,140.51,140.48,9.57985178]
[1763516618707,3.32142806,140.51,140.49,3.12]
[1763516618910,0.05142806,140.51,140.49,3.12]
[1763516622112,3.32142806,140.51,140.49,3.12]
[1763516622313,0.05142806,140.51,140.49,3.12]
[1763516624616,0.05142806,140.51,140.49,9.5302]
[1763516625516,0.05142806,140.51,140.5,3.12]
[1763516627313,0.05142806,140.51,140.49,3.12]
[1763516628017,0.05142806,140.51,140.5,3.12]
[1763516631313,0.05142806,140.51,140.5,9.5297]
[1763516631912,0.05142806,140.51,140.5,3.12]
[1763516633416,0.05142806,140.51,140.5,9.5297]
[1763516633817,3.27,140.56,140.51,3.12]
[1763516634119,3.27,140.58,140.54,3.12]
[1763516634310,9.6765,140.58,140.54,3.12]
[1763516634707,0.05020709,140.57,140.56,3.12]
[1763516634931,3.32020709,140.57,140.55,3.17329357]
[1763516636315,3.32020709,140.57,140.5,3.12]
[1763516636515,3.27,140.55,140.5,3.12]
[1763516636722,6.4084,140.53,140.5,3.12]
[1763516637514,6.46142877,140.53,140.5,3.16776705]
[1763516637818,0.05302877,140.53,140.5,3.16776705]
[1763516638224,0.05302877,140.53,140.52,3.12]
[1763516642026,3.32302877,140.53,140.5,0.04776705]
[1763516642527,3.27,140.51,140.44,3.12]
[1763516643022,9.6813,140.47,140.41,40.56]
[1763516643327,2.97383719,140.49,140.38,2.97]
[1763516643328,3.0,140.46,140.38,2.97]
[1763516643527,0.05207188,140.43,140.41,0.03532446]
[1763516643727,0.05207188,140.43,140.41,3.00532446]
[1763516645725,0.05207188,140.43,140.41,9.41902446]
[1763516645920,6.4108,140.48,140.42,2.97]
[1763516646224,3.0,140.49,140.42,2.97]
[1763516646631,3.0,140.47,140.43,6.4127]
[1763516646932,3.04898049,140.46,140.44,0.04584087]
[1763516647631,0.04898049,140.46,140.44,3.01584087]
[1763516647925,0.04898049,140.46,140.45,2.97]
[1763516648325,5.44732524,140.53,140.46,2.97]
[1763516648531,3.0,140.57,140.49,2.97]
[1763516648719,8.44848061,140.56,140.49,2.97]
[1763516648921,3.0,140.56,140.49,2.97]
[1763516649118,3.0,140.56,140.5,6.4096]
[1763516649327,0.05285603,140.54,140.52,0.04618561]
[1763516653432,3.05285603,140.54,140.52,0.04618561]
[1763516653732,3.0,140.53,140.52,0.04618561]
[1763516656140,3.05285603,140.54,140.52,0.04618561]
[1763516656832,0.05285603,140.54,140.52,0.04618561]
[1763516657538,3.05285603,140.54,140.52,0.04618561]
[1763516658041,3.05285603,140.54,140.46,40.41]
[1763516658339,3.0,140.54,140.46,40.41]
[1763516658542,3.0,140.53,140.47,2.97]
[1763516658942,9.4088,140.52,140.48,2.97]
[1763516659239,0.05433715,140.51,140.49,0.05322833]
[1763516660435,3.0,140.5,140.49,0.05322833]
[1763516662638,0.05433715,140.51,140.49,3.04322833]
[1763516663944,0.05433715,140.51,140.49,9.45332833]
[1763516665043,0.05433715,140.51,140.5,2.99]
[1763516665243,0.05433715,140.51,140.49,3.04322833]
[1763516666444,3.33433715,140.51,140.49,0.05322833]
[1763516666637,0.05433715,140.51,140.49,3.04322833]
[1763516672050,0.05433715,140.51,140.5,2.99]
[1763516673344,0.05433715,140.51,140.49,0.05322833]
[1763516673539,0.05433715,140.51,140.49,3.30322833]
[1763516679846,0.05433715,140.51,140.5,9.6597]
[1763516680045,40.48,140.57,140.5,3.25]
[1763516680555,3.06,140.59,140.54,3.25]
[1763516680958,0.0529687,140.58,140.56,3.25]
[1763516681141,0.0529687,140.58,140.57,6.4064]
[1763516681346,0.0529687,140.58,140.57,9.6564]
[1763516682449,0.0529687,140.58,140.57,3.25]
[1763516687661,0.0529687,140.58,140.57,5.15290835]
[1763516688660,0.0529687,140.58,140.55,3.29895802]
[1763516689860,0.0529687,140.58,140.55,9.70635802]
[1763516690060,0.0529687,140.58,140.55,3.29895802]
[1763516691865,0.0529687,140.58,140.57,3.25]
[1763516694163,3.1129687,140.58,140.55,3.29895802]
[1763516694664,0.0529687,140.58,140.55,3.29895802]
[1763516694862,0.0529687,140.58,140.55,9.70635802]
[1763516695068,0.0529687,140.58,140.56,3.25]
[1763516698564,0.0529687,140.58,140.57,3.25]
[1763516699869,9.4642,140.63,140.58,3.25]
[1763516700663,9.4631,140.65,140.61,3.25]
[1763516700863,0.04725888,140.62,140.61,3.25]
[1763516701070,3.06,140.68,140.61,3.25]
[1763516701268,3.06,140.65,140.59,3.25]
[1763516701474,1.90290835,140.63,140.56,3.25]
[1763516701656,3.06,140.62,140.56,3.25]
[1763516702062,3.06,140.62,140.55,37.4]
[1763516702063,0.04688008,140.6,140.58,3.30207824]
[1763516704664,3.04,140.59,140.58,0.05207824]
[1763516705166,3.04,140.59,140.54,3.15]
[1763516705568,3.04,140.59,140.55,3.15]
[1763516705965,0.04688008,140.6,140.56,3.19883786]
[1763516706171,0.05137246,140.59,140.56,3.19883786]
[1763516706971,0.05137246,140.59,140.57,3.15]
[1763516709475,9.49697246,140.59,140.56,3.19883786]
[1763516709881,3.09137246,140.59,140.56,3.19883786]
[1763516710880,3.04,140.58,140.56,0.04883786]
[1763516711783,9.49707246,140.59,140.56,3.19883786]
[1763516712375,0.05137246,140.59,140.56,3.19883786]
[1763516713383,3.09137246,140.59,140.56,3.19883786]
[1763516713578,3.09137246,140.59,140.56,0.04883786]
[1763516713879,3.04,140.57,140.56,0.04883786]
[1763516714277,3.04,140.57,140.51,40.53]
[1763516714585,3.04,140.57,140.49,3.15]
[1763516714586,9.4489,140.52,140.49,3.15]
[1763516714784,6.4089,140.52,140.49,3.15]
[1763516714979,6.4082,140.54,140.49,3.15]
[1763516715282,0.04535551,140.53,140.5,3.19994161]
[1763516716480,9.49375551,140.53,140.5,0.04994161]
[1763516716677,3.08535551,140.53,140.5,0.04994161]
[1763516717681,6.4089,140.52,140.5,3.19994161]
[1763516717871,3.08535551,140.53,140.5,3.19994161]
[1763516718078,0.04535551,140.53,140.5,3.19994161]
[1763516719285,0.04535551,140.53,140.5,0.04994161]
[1763516719286,3.08535551,140.53,140.5,0.04994161]
[1763516720089,3.04,140.51,140.5,0.04994161]
[1763516721790,3.27535551,140.53,140.5,3.22994161]
[1763516722681,0.04535551,140.53,140.5,3.22994161]
[1763516723682,0.04535551,140.53,140.5,9.63954161]
[1763516724190,0.04535551,140.53,140.51,3.18]
[1763516727391,9.6344,140.62,140.56,3.18]
[1763516727696,3.23,140.61,140.53,3.18]
[1763516727991,99.6184,140.63,140.53,3.18]
[1763516727992,9.6358,140.59,140.53,3.18]
[1763516728390,3.23,140.56,140.55,0.046648]
[1763516728590,3.23,140.55,140.47,3.18]
[1763516728785,105.08639586,140.58,140.5,3.18]
[1763516728786,3.23,140.54,140.5,3.18]
[1763516728987,3.23,140.57,140.5,3.18]
[1763516729392,102.61933314,140.59,140.5,3.18]
[1763516729393,9.6371,140.56,140.5,9.5897]
[1763516729593,0.047363,140.54,140.52,0.04806983]
[1763516729994,0.047363,140.54,140.52,3.22806983]
[1763516730702,0.047363,140.54,140.52,9.63666983]
[1763516730900,0.047363,140.54,140.53,3.18]
[1763516732793,3.23,140.59,140.55,3.18]
[1763516732998,37.38,140.61,140.55,3.18]
[1763516733403,3.23,140.62,140.58,3.22]
[1763516733603,3.28,140.58,140.54,3.22]
[1763516733903,99.6325,140.61,140.54,3.22]
[1763516733904,3.32705124,140.57,140.55,0.05102527]
[1763516735603,9.73375124,140.57,140.55,0.05102527]
[1763516735800,3.28,140.56,140.55,0.05102527]
[1763516736007,3.28,140.54,140.51,3.22]
[1763516737096,3.3307074,140.54,140.51,3.22]
[1763516737299,3.3307074,140.54,140.51,3.26999728]
[1763516738807,3.28,140.53,140.51,0.04999728]
[1763516739507,3.28,140.52,140.45,3.22]
[1763516740210,9.6902,140.49,140.45,3.22]
[1763516740508,0.05093611,140.48,140.46,0.0505137]
[1763516740712,0.05093611,140.48,140.46,3.2705137]
[1763516741101,0.05093611,140.48,140.46,0.0505137]
[1763516741609,3.33093611,140.48,140.46,0.0505137]
[1763516743115,3.28,140.47,140.46,0.0505137]
[1763516743411,3.28,140.47,140.4,3.22]
[1763516744013,9.692,140.45,140.4,3.22]
[1763516744214,0.04597621,140.44,140.41,3.2617037]
[1763516744615,3.32597621,140.44,140.41,3.2617037]
[1763516748320,0.04597621,140.44,140.42,3.22]
[1763516748824,0.04597621,140.44,140.43,3.22]
[1763516752023,3.32597621,140.44,140.41,0.0417037]
[1763516753930,3.28,140.42,140.41,0.0417037]
[1763516755421,9.6943,140.4,140.34,3.22]
[1763516755719,3.28,140.4,140.34,3.22]
[1763516755922,3.28,140.4,140.34,9.6369]
[1763516756423,0.04879845,140.38,140.34,9.6369]
[1763516756623,0.04879845,140.38,140.35,3.22]
[1763516756822,3.28,140.37,140.3,3.22]
[1763516757127,3.28,140.34,140.3,3.22]
[1763516757326,0.04784441,140.35,140.3,3.22]
[1763516757830,3.32784441,140.35,140.31,9.6384]
[1763516758029,0.04784441,140.35,140.32,3.22]
[1763516759221,0.04784441,140.35,140.34,3.22]
[1763516762038,3.28,140.41,140.32,3.22]
[1763516762438,3.28,140.39,140.32,3.22]
[1763516762946,3.28,140.39,140.31,137.2396]
[1763516762947,0.0474821,140.37,140.35,3.22]
[1763516763632,3.2774821,140.37,140.34,3.2391715]
[1763516763826,0.0474821,140.37,140.34,3.2391715]
[1763516764135,0.0474821,140.37,140.35,9.6065]
[1763516764632,0.0474821,140.37,140.35,3.19]
[1763516765338,0.0474821,140.37,140.35,9.6064]
[1763516767026,3.2774821,140.37,140.34,0.0491715]
[1763516767743,3.23,140.36,140.34,0.0491715]
[1763516768234,3.23,140.35,140.34,0.0491715]
[1763516768433,3.23,140.35,140.3,37.42]
[1763516768630,3.23,140.35,140.28,4.43028797]
[1763516768631,3.23,140.35,140.28,3.19]
[1763516768831,9.648,140.32,140.28,9.6096]
[1763516769032,9.648,140.32,140.29,3.19]
[1763516769437,3.27533274,140.32,140.29,3.19]
[1763516770042,0.04533274,140.32,140.3,3.19]